[Event "Early-Titled-Tuesday-Blitz-February-27-2024"]
[Site "Chess.com"]
[Date "2024.02.27"]
[Round "9"]
[White "BogdanDeac"]
[Black "AttackSparrow"]
[Result "1-0"]
[WhiteElo "2972"]
[BlackElo "2648"]
[TimeControl "180+1"]
[EndTime "9:45:31 PST"]
[Termination "BogdanDeac won by resignation"]

1. d4 {[%clk 0:03:00.9]} 1... d5 {[%clk 0:03:00.2]} 2. c4 {[%clk 0:03:01.3]}
2... e6 {[%clk 0:03:00.6]} 3. Nf3 {[%clk 0:03:00.9]} 3... Nf6 {[%clk 0:03:01.2]}
4. Bg5 {[%clk 0:02:58.7]} 4... Bb4+ {[%clk 0:02:53]} 5. Nc3 {[%clk 0:02:58.2]}
5... dxc4 {[%clk 0:02:50.8]} 6. e4 {[%clk 0:02:57]} 6... c5 {[%clk 0:02:46.7]}
7. e5 {[%clk 0:02:47.2]} 7... cxd4 {[%clk 0:02:28.5]} 8. Nxd4 {[%clk 0:02:46.8]}
8... Qa5 {[%clk 0:02:24.1]} 9. exf6 {[%clk 0:02:46.1]} 9... Bxc3+ {[%clk
0:02:11]} 10. bxc3 {[%clk 0:02:44.9]} 10... Qxg5 {[%clk 0:02:00.5]} 11. fxg7
{[%clk 0:02:44.7]} 11... Qxg7 {[%clk 0:02:01.4]} 12. Qd2 {[%clk 0:02:44.1]}
12... Bd7 {[%clk 0:01:53.3]} 13. O-O-O {[%clk 0:02:36.4]} 13... O-O {[%clk
0:01:30.8]} 14. h4 {[%clk 0:02:14.8]} 14... Ba4 {[%clk 0:01:28.1]} 15. Re1
{[%clk 0:02:14.1]} 15... Rd8 {[%clk 0:01:28.5]} 16. Rh3 {[%clk 0:02:10.5]} 16...
Kh8 {[%clk 0:01:20.4]} 17. Rg3 {[%clk 0:02:03.9]} 17... Qf6 {[%clk 0:01:20.3]}
18. Rf3 {[%clk 0:02:03.7]} 18... Qg7 {[%clk 0:01:18]} 19. Qf4 {[%clk 0:01:52.3]}
19... Nc6 {[%clk 0:01:13.2]} 20. Nxc6 {[%clk 0:01:17.8]} 20... bxc6 {[%clk
0:00:51.3]} 21. Qxf7 {[%clk 0:00:26.7]} 21... Qxf7 {[%clk 0:00:18.5]} 22. Rxf7
{[%clk 0:00:25.6]} 22... Rf8 {[%clk 0:00:19.2]} 23. Rxf8+ {[%clk 0:00:20.6]}
23... Rxf8 {[%clk 0:00:20.1]} 24. f3 {[%clk 0:00:20.6]} 24... Rf4 {[%clk
0:00:20.6]} 25. h5 {[%clk 0:00:07.5]} 25... Rh4 {[%clk 0:00:18.2]} 26. Rxe6
{[%clk 0:00:07.5]} 26... Rxh5 {[%clk 0:00:08.9]} 27. Bxc4 {[%clk 0:00:07]} 27...
Rc5 {[%clk 0:00:07.8]} 28. Re4 {[%clk 0:00:05]} 28... Bb5 {[%clk 0:00:04.6]} 29.
Bxb5 {[%clk 0:00:05.1]} 29... cxb5 {[%clk 0:00:05.5]} 30. Kc2 {[%clk 0:00:05.3]}
30... Kg7 {[%clk 0:00:06.2]} 31. Kb3 {[%clk 0:00:05]} 31... h5 {[%clk
0:00:06.9]} 32. Kb4 {[%clk 0:00:04.7]} 32... Rg5 {[%clk 0:00:06.9]} 33. g4
{[%clk 0:00:05]} 33... h4 {[%clk 0:00:06.6]} 34. Re1 {[%clk 0:00:05]} 34... Rg6
{[%clk 0:00:07]} 35. Rh1 {[%clk 0:00:04.6]} 35... Rh6 {[%clk 0:00:05.1]} 36.
Kxb5 {[%clk 0:00:05]} 36... Kf6 {[%clk 0:00:03.6]} 37. f4 {[%clk 0:00:05.3]}
37... Rh8 {[%clk 0:00:04.2]} 38. Kc5 {[%clk 0:00:05.1]} 38... Ke6 {[%clk
0:00:03.3]} 39. Kd4 {[%clk 0:00:05.2]} 39... Kd6 {[%clk 0:00:01.8]} 40. Rh3
{[%clk 0:00:05.3]} 40... Kc6 {[%clk 0:00:01.9]} 41. Ke5 {[%clk 0:00:05.3]} 41...
Kc5 {[%clk 0:00:02.8]} 42. Kf6 {[%clk 0:00:05.4]} 42... Rf8+ {[%clk 0:00:02.8]}
43. Kg5 {[%clk 0:00:05.7]} 43... Kd5 {[%clk 0:00:03.2]} 44. Rxh4 {[%clk
0:00:05.1]} 44... Ke4 {[%clk 0:00:04.1]} 45. f5 {[%clk 0:00:05.2]} 45... Ke5
{[%clk 0:00:03.8]} 46. Rh6 {[%clk 0:00:05.3]} 46... Rg8+ {[%clk 0:00:04.7]} 47.
Rg6 {[%clk 0:00:05.5]} 47... Rc8 {[%clk 0:00:05.2]} 48. Re6+ {[%clk 0:00:05.8]}
1-0

[Event "Early-Titled-Tuesday-Blitz-February-27-2024"]
[Site "Chess.com"]
[Date "2024.02.27"]
[Round "9"]
[White "Kildepiotr"]
[Black "ural58"]
[Result "1-0"]
[WhiteElo "2686"]
[BlackElo "2489"]
[TimeControl "180+1"]
[EndTime "9:45:31 PST"]
[Termination "Kildepiotr won on time"]

1. Nf3 {[%clk 0:02:27.5]} 1... Nc6 {[%clk 0:02:55.2]} 2. d4 {[%clk 0:02:26.4]}
2... d5 {[%clk 0:02:55.1]} 3. Bf4 {[%clk 0:02:26.6]} 3... Bg4 {[%clk 0:02:54.5]}
4. e3 {[%clk 0:02:26.8]} 4... e6 {[%clk 0:02:54.6]} 5. Nbd2 {[%clk 0:02:26.6]}
5... Bd6 {[%clk 0:02:54.6]} 6. Bg3 {[%clk 0:02:26.9]} 6... f5 {[%clk 0:02:49.3]}
7. c4 {[%clk 0:02:24.7]} 7... Nf6 {[%clk 0:02:43.3]} 8. Qb3 {[%clk 0:02:21.5]}
8... Bxg3 {[%clk 0:02:32]} 9. hxg3 {[%clk 0:02:19.7]} 9... Rb8 {[%clk
0:02:25.5]} 10. Ne5 {[%clk 0:02:01.7]} 10... O-O {[%clk 0:02:21.9]} 11. f3
{[%clk 0:01:53.3]} 11... Bh5 {[%clk 0:02:21.4]} 12. Nd3 {[%clk 0:01:39.6]} 12...
Bf7 {[%clk 0:02:09.1]} 13. Qc3 {[%clk 0:01:34.3]} 13... Ne7 {[%clk 0:02:03.2]}
14. Kf2 {[%clk 0:01:29.9]} 14... c6 {[%clk 0:01:47.5]} 15. Ne5 {[%clk
0:01:25.3]} 15... Nd7 {[%clk 0:01:46.9]} 16. Nxf7 {[%clk 0:01:22.1]} 16... Rxf7
{[%clk 0:01:46.4]} 17. Bd3 {[%clk 0:01:21.9]} 17... Qc7 {[%clk 0:01:37.5]} 18.
g4 {[%clk 0:01:20.3]} 18... Rbf8 {[%clk 0:01:30.3]} 19. gxf5 {[%clk 0:01:15.9]}
19... Nxf5 {[%clk 0:01:30]} 20. Rh3 {[%clk 0:01:14.9]} 20... e5 {[%clk
0:01:12.6]} 21. Bxf5 {[%clk 0:01:09.6]} 21... Rxf5 {[%clk 0:01:12.1]} 22. cxd5
{[%clk 0:01:09]} 22... Nf6 {[%clk 0:01:00.9]} 23. dxc6 {[%clk 0:01:04.3]} 23...
bxc6 {[%clk 0:00:52.1]} 24. Rc1 {[%clk 0:01:00.1]} 24... e4 {[%clk 0:00:41.3]}
25. Ke2 {[%clk 0:00:49.1]} 25... exf3+ {[%clk 0:00:36.3]} 26. gxf3 {[%clk
0:00:50]} 26... c5 {[%clk 0:00:36.2]} 27. dxc5 {[%clk 0:00:40.3]} 27... Rg5
{[%clk 0:00:29.7]} 28. Ne4 {[%clk 0:00:10.9]} 28... Nxe4 {[%clk 0:00:27.1]} 29.
Qc4+ {[%clk 0:00:11.3]} 29... Rf7 {[%clk 0:00:18.6]} 30. Qxe4 {[%clk 0:00:12.2]}
30... h6 {[%clk 0:00:16]} 31. c6 {[%clk 0:00:09.8]} 31... Rg2+ {[%clk
0:00:14.8]} 32. Kf1 {[%clk 0:00:09.9]} 32... Rxb2 {[%clk 0:00:14.9]} 33. Qe8+
{[%clk 0:00:08.3]} 33... Kh7 {[%clk 0:00:14.9]} 34. Qe4+ {[%clk 0:00:08]} 34...
Kg8 {[%clk 0:00:15.1]} 35. Rc2 {[%clk 0:00:07.6]} 35... Rb1+ {[%clk 0:00:14.9]}
36. Kf2 {[%clk 0:00:07.8]} 36... Qa5 {[%clk 0:00:09.3]} 37. Re2 {[%clk
0:00:07.7]} 37... Qc3 {[%clk 0:00:05.7]} 38. Qxb1 {[%clk 0:00:07.5]} 38... Qxc6
{[%clk 0:00:04.8]} 39. Qb3 {[%clk 0:00:07.7]} 39... Qd7 {[%clk 0:00:03.5]} 40.
Rg3 {[%clk 0:00:07.7]} 40... Kh8 {[%clk 0:00:03.5]} 41. Qb8+ {[%clk 0:00:07.3]}
41... Kh7 {[%clk 0:00:02.9]} 42. Qe5 {[%clk 0:00:07.8]} 42... Qd1 {[%clk
0:00:01]} 43. Rb2 {[%clk 0:00:07.4]} 1-0

[Event "Early-Titled-Tuesday-Blitz-February-27-2024"]
[Site "Chess.com"]
[Date "2024.02.27"]
[Round "9"]
[White "artin10862"]
[Black "FoggyMorning"]
[Result "0-1"]
[WhiteElo "2877"]
[BlackElo "2680"]
[TimeControl "180+1"]
[EndTime "9:45:33 PST"]
[Termination "FoggyMorning won by resignation"]

1. Nf3 {[%clk 0:03:00.9]} 1... d5 {[%clk 0:02:59.8]} 2. e3 {[%clk 0:02:59.8]}
2... Nf6 {[%clk 0:02:58]} 3. b3 {[%clk 0:02:59.7]} 3... e6 {[%clk 0:02:51.2]} 4.
c4 {[%clk 0:02:55.6]} 4... Be7 {[%clk 0:02:46.5]} 5. Bb2 {[%clk 0:02:55.9]} 5...
O-O {[%clk 0:02:47]} 6. Nc3 {[%clk 0:02:56.2]} 6... b6 {[%clk 0:02:44.2]} 7. Rc1
{[%clk 0:02:36.5]} 7... dxc4 {[%clk 0:02:38.9]} 8. bxc4 {[%clk 0:02:35.6]} 8...
c5 {[%clk 0:02:32.9]} 9. g3 {[%clk 0:02:32.3]} 9... Bb7 {[%clk 0:02:30.7]} 10.
Bg2 {[%clk 0:02:32.2]} 10... Nc6 {[%clk 0:02:24]} 11. O-O {[%clk 0:02:31.2]}
11... Rc8 {[%clk 0:02:08]} 12. Qe2 {[%clk 0:02:25.4]} 12... Nb4 {[%clk
0:01:59.3]} 13. Ne5 {[%clk 0:02:19.8]} 13... Bxg2 {[%clk 0:01:56.9]} 14. Kxg2
{[%clk 0:02:20.7]} 14... Nd7 {[%clk 0:01:51.9]} 15. Nf3 {[%clk 0:02:16]} 15...
Bf6 {[%clk 0:01:45.5]} 16. a3 {[%clk 0:02:03.9]} 16... Nc6 {[%clk 0:01:32]} 17.
Rfd1 {[%clk 0:02:03]} 17... Qc7 {[%clk 0:01:09]} 18. d3 {[%clk 0:01:59.3]} 18...
Rfd8 {[%clk 0:01:07.3]} 19. Ne1 {[%clk 0:01:54.9]} 19... a6 {[%clk 0:01:02.9]}
20. f4 {[%clk 0:01:53.8]} 20... b5 {[%clk 0:00:50]} 21. Nf3 {[%clk 0:01:38.2]}
21... b4 {[%clk 0:00:46.8]} 22. axb4 {[%clk 0:01:35.1]} 22... cxb4 {[%clk
0:00:47.7]} 23. Ne4 {[%clk 0:01:35.3]} 23... Bxb2 {[%clk 0:00:45.3]} 24. Qxb2
{[%clk 0:01:35.8]} 24... a5 {[%clk 0:00:38]} 25. d4 {[%clk 0:01:26.8]} 25... Ne7
{[%clk 0:00:29.1]} 26. c5 {[%clk 0:01:20.3]} 26... Nd5 {[%clk 0:00:29.1]} 27.
Kf2 {[%clk 0:01:15.7]} 27... N7f6 {[%clk 0:00:29.4]} 28. Nxf6+ {[%clk
0:01:10.4]} 28... Nxf6 {[%clk 0:00:28.9]} 29. Qc2 {[%clk 0:01:03.7]} 29... Qb7
{[%clk 0:00:28.4]} 30. c6 {[%clk 0:00:58.3]} 30... Qb6 {[%clk 0:00:20.1]} 31.
Ne5 {[%clk 0:00:58.1]} 31... Nd5 {[%clk 0:00:17]} 32. Qc5 {[%clk 0:00:39.7]}
32... Qc7 {[%clk 0:00:14.8]} 33. e4 {[%clk 0:00:20.4]} 33... Nc3 {[%clk
0:00:15.3]} 34. Rxc3 {[%clk 0:00:20.8]} 34... bxc3 {[%clk 0:00:16.1]} 35. Qxc3
{[%clk 0:00:21.7]} 35... f6 {[%clk 0:00:14.8]} 36. Nf3 {[%clk 0:00:16.2]} 36...
Qxc6 {[%clk 0:00:14.8]} 37. Qxa5 {[%clk 0:00:16.7]} 37... Qxe4 {[%clk 0:00:14]}
38. Rd2 {[%clk 0:00:17.2]} 38... Rd7 {[%clk 0:00:12.5]} 39. Qa6 {[%clk
0:00:13.6]} 39... Rc2 {[%clk 0:00:11.5]} 40. Rxc2 {[%clk 0:00:11.8]} 40... Qxc2+
{[%clk 0:00:12.4]} 41. Kg1 {[%clk 0:00:11.2]} 41... Qc1+ {[%clk 0:00:11.9]} 42.
Kg2 {[%clk 0:00:11.4]} 42... Qb2+ {[%clk 0:00:12.3]} 43. Kh3 {[%clk 0:00:11]}
43... Qb7 {[%clk 0:00:09.6]} 44. Qxe6+ {[%clk 0:00:10.3]} 44... Kf8 {[%clk
0:00:10.1]} 45. Kg2 {[%clk 0:00:07.4]} 45... Qd5 {[%clk 0:00:10]} 46. Qe3 {[%clk
0:00:06.4]} 46... Ra7 {[%clk 0:00:09.6]} 47. Kh3 {[%clk 0:00:05.5]} 47... Rb7
{[%clk 0:00:09.2]} 48. g4 {[%clk 0:00:05]} 48... Rb3 {[%clk 0:00:09.1]} 0-1

[Event "Early-Titled-Tuesday-Blitz-February-27-2024"]
[Site "Chess.com"]
[Date "2024.02.27"]
[Round "9"]
[White "Winner_7777"]
[Black "PavelShkapenko"]
[Result "1-0"]
[WhiteElo "2565"]
[BlackElo "2732"]
[TimeControl "180+1"]
[EndTime "9:45:33 PST"]
[Termination "Winner_7777 won by resignation"]

1. d4 {[%clk 0:03:00.9]} 1... d5 {[%clk 0:02:57.9]} 2. c4 {[%clk 0:03:01.1]}
2... dxc4 {[%clk 0:02:57.1]} 3. Nf3 {[%clk 0:03:00.8]} 3... Nf6 {[%clk
0:02:57.1]} 4. e3 {[%clk 0:03:01.4]} 4... Bg4 {[%clk 0:02:56.9]} 5. Bxc4 {[%clk
0:03:01.4]} 5... e6 {[%clk 0:02:57.6]} 6. O-O {[%clk 0:03:00.1]} 6... Nc6 {[%clk
0:02:57.4]} 7. Nc3 {[%clk 0:02:59.6]} 7... Bd6 {[%clk 0:02:57.5]} 8. h3 {[%clk
0:02:59.4]} 8... Bh5 {[%clk 0:02:57.2]} 9. Qb3 {[%clk 0:02:45.5]} 9... Bxf3
{[%clk 0:02:51.8]} 10. gxf3 {[%clk 0:02:46.4]} 10... e5 {[%clk 0:01:53.8]} 11.
Qxb7 {[%clk 0:02:35.3]} 11... Na5 {[%clk 0:01:48.9]} 12. Bb5+ {[%clk 0:02:35]}
12... Kf8 {[%clk 0:01:44.2]} 13. Qa6 {[%clk 0:02:35.4]} 13... exd4 {[%clk
0:01:38.1]} 14. exd4 {[%clk 0:02:35.8]} 14... c6 {[%clk 0:01:38.2]} 15. Bd3
{[%clk 0:01:55.5]} 15... Bc7 {[%clk 0:01:31.7]} 16. Ne4 {[%clk 0:01:20.3]} 16...
Nxe4 {[%clk 0:01:25]} 17. Bxe4 {[%clk 0:00:51.4]} 17... Qxd4 {[%clk 0:00:56.2]}
18. Be3 {[%clk 0:00:28.7]} 18... Qe5 {[%clk 0:00:56]} 19. Rfd1 {[%clk 0:00:21]}
19... Qh2+ {[%clk 0:00:53.7]} 20. Kf1 {[%clk 0:00:21.7]} 20... Qxh3+ {[%clk
0:00:49.9]} 21. Ke2 {[%clk 0:00:21.9]} 21... Qe6 {[%clk 0:00:46.8]} 22. Rac1
{[%clk 0:00:19.1]} 22... Rb8 {[%clk 0:00:39.7]} 23. b4 {[%clk 0:00:17.1]} 23...
f5 {[%clk 0:00:20.1]} 24. Bd5 {[%clk 0:00:09.5]} 24... Qe5 {[%clk 0:00:12.1]}
25. bxa5 {[%clk 0:00:04.4]} 25... cxd5 {[%clk 0:00:10.7]} 26. f4 {[%clk
0:00:02.8]} 26... Qe7 {[%clk 0:00:08.2]} 27. Kf1 {[%clk 0:00:01.9]} 27... Bd6
{[%clk 0:00:06]} 28. Rxd5 {[%clk 0:00:02]} 28... Rd8 {[%clk 0:00:05.8]} 29. Bc5
{[%clk 0:00:02.1]} 29... Bxc5 {[%clk 0:00:05.3]} 30. Rcxc5 {[%clk 0:00:02.8]}
30... Rxd5 {[%clk 0:00:04.9]} 31. Rxd5 {[%clk 0:00:03.7]} 31... Kf7 {[%clk
0:00:05.5]} 32. Rxf5+ {[%clk 0:00:03.7]} 32... Ke8 {[%clk 0:00:03.8]} 33. Qb5+
{[%clk 0:00:03.6]} 33... Qd7 {[%clk 0:00:02.4]} 34. Re5+ {[%clk 0:00:03.8]}
34... Kd8 {[%clk 0:00:02.6]} 35. Rd5 {[%clk 0:00:04.5]} 35... Qxd5 {[%clk
0:00:02]} 36. Qxd5+ {[%clk 0:00:05.4]} 36... Ke7 {[%clk 0:00:02.4]} 37. Qe5+
{[%clk 0:00:05.7]} 37... Kf7 {[%clk 0:00:02.8]} 38. Qc7+ {[%clk 0:00:04.8]}
38... Kf6 {[%clk 0:00:02.9]} 39. Qxa7 {[%clk 0:00:05.4]} 39... Re8 {[%clk
0:00:03.5]} 40. Qb7 {[%clk 0:00:05.4]} 40... Re7 {[%clk 0:00:04]} 41. a6 {[%clk
0:00:05.6]} 1-0

[Event "Early-Titled-Tuesday-Blitz-February-27-2024"]
[Site "Chess.com"]
[Date "2024.02.27"]
[Round "9"]
[White "Vaathi_Coming"]
[Black "HATilay"]
[Result "1-0"]
[WhiteElo "2896"]
[BlackElo "2633"]
[TimeControl "180+1"]
[EndTime "9:45:34 PST"]
[Termination "Vaathi_Coming won by resignation"]

1. Nf3 {[%clk 0:02:35.7]} 1... Nf6 {[%clk 0:02:59.6]} 2. Rg1 {[%clk 0:02:35.1]}
2... d5 {[%clk 0:02:58.4]} 3. b3 {[%clk 0:02:34.8]} 3... c5 {[%clk 0:02:50]} 4.
Bb2 {[%clk 0:02:34.7]} 4... Nc6 {[%clk 0:02:50.5]} 5. e3 {[%clk 0:02:35.3]} 5...
a6 {[%clk 0:02:19.8]} 6. h3 {[%clk 0:02:28.3]} 6... d4 {[%clk 0:02:15.7]} 7. g4
{[%clk 0:02:22.6]} 7... e5 {[%clk 0:02:13.1]} 8. d3 {[%clk 0:02:15.2]} 8... Be7
{[%clk 0:01:46.3]} 9. a3 {[%clk 0:02:01.8]} 9... O-O {[%clk 0:01:44.5]} 10. Nbd2
{[%clk 0:02:01.5]} 10... b5 {[%clk 0:01:44.1]} 11. Bg2 {[%clk 0:02:00.9]} 11...
Rb8 {[%clk 0:01:31.8]} 12. Qe2 {[%clk 0:01:54.8]} 12... Nd5 {[%clk 0:01:27.7]}
13. Ne4 {[%clk 0:01:51.5]} 13... Re8 {[%clk 0:01:15.9]} 14. O-O-O {[%clk
0:01:28.3]} 14... Bf8 {[%clk 0:00:57.3]} 15. g5 {[%clk 0:01:20.9]} 15... c4
{[%clk 0:00:51.3]} 16. dxc4 {[%clk 0:01:19.6]} 16... bxc4 {[%clk 0:00:51.6]} 17.
Qxc4 {[%clk 0:01:17.8]} 17... Na5 {[%clk 0:00:42.8]} 18. Qd3 {[%clk 0:01:17.6]}
18... Bf5 {[%clk 0:00:18.5]} 19. Nh4 {[%clk 0:01:17.2]} 19... Bd7 {[%clk
0:00:17.5]} 20. exd4 {[%clk 0:01:16.3]} 20... Bb5 {[%clk 0:00:18.1]} 21. Qf3
{[%clk 0:00:48.6]} 21... Qc7 {[%clk 0:00:14.2]} 22. Nf5 {[%clk 0:00:42.2]} 22...
Rec8 {[%clk 0:00:13.9]} 23. Rd2 {[%clk 0:00:41.3]} 23... Be2 {[%clk 0:00:08]}
24. Rxe2 {[%clk 0:00:40.5]} 24... Nxb3+ {[%clk 0:00:08.4]} 25. Kd1 {[%clk
0:00:40.9]} 25... Nxd4 {[%clk 0:00:08.2]} 26. Nxd4 {[%clk 0:00:36.3]} 26... Rxb2
{[%clk 0:00:08]} 27. Nb3 {[%clk 0:00:11.8]} 27... Rxc2 {[%clk 0:00:07.8]} 28.
Rd2 {[%clk 0:00:08.1]} 28... Bxa3 {[%clk 0:00:05.5]} 29. Ke1 {[%clk 0:00:03.8]}
29... Nf4 {[%clk 0:00:05.6]} 30. Qd1 {[%clk 0:00:03.3]} 30... Rc4 {[%clk
0:00:03.5]} 31. f3 {[%clk 0:00:02.8]} 31... Bb4 {[%clk 0:00:03.6]} 32. Bf1
{[%clk 0:00:03.1]} 32... Bxd2+ {[%clk 0:00:03.9]} 33. Qxd2 {[%clk 0:00:03.5]}
33... Rc2 {[%clk 0:00:04.1]} 34. Qb4 {[%clk 0:00:03.2]} 34... a5 {[%clk
0:00:03.9]} 35. Qxa5 {[%clk 0:00:03.3]} 35... Rc1+ {[%clk 0:00:04]} 36. Kf2
{[%clk 0:00:03.3]} 36... Qc2+ {[%clk 0:00:04.1]} 37. Kg3 {[%clk 0:00:03.8]}
37... h6 {[%clk 0:00:03.3]} 38. Qxe5 {[%clk 0:00:04.1]} 38... hxg5 {[%clk
0:00:03.5]} 39. Qxg5 {[%clk 0:00:04]} 39... Ne2+ {[%clk 0:00:03.2]} 40. Kh4
{[%clk 0:00:03.5]} 40... Nxg1 {[%clk 0:00:03.3]} 41. Nd4 {[%clk 0:00:03.6]}
41... Qf2+ {[%clk 0:00:03]} 42. Nxf2 {[%clk 0:00:03.5]} 42... Nxf3+ {[%clk
0:00:03.4]} 43. Nxf3 {[%clk 0:00:03.1]} 43... R8c4+ {[%clk 0:00:04.3]} 44. Ng4
{[%clk 0:00:03.1]} 1-0

[Event "Early-Titled-Tuesday-Blitz-February-27-2024"]
[Site "Chess.com"]
[Date "2024.02.27"]
[Round "9"]
[White "PepeCuenca"]
[Black "phantom19801127"]
[Result "1-0"]
[WhiteElo "2715"]
[BlackElo "2542"]
[TimeControl "180+1"]
[EndTime "9:45:34 PST"]
[Termination "PepeCuenca won on time"]

1. d4 {[%clk 0:03:00.5]} 1... Nf6 {[%clk 0:02:51.8]} 2. Bf4 {[%clk 0:03:00.4]}
2... d5 {[%clk 0:02:51]} 3. e3 {[%clk 0:03:00.4]} 3... a6 {[%clk 0:02:49.3]} 4.
Nd2 {[%clk 0:02:53.9]} 4... c5 {[%clk 0:02:48.9]} 5. c3 {[%clk 0:02:47.7]} 5...
Nc6 {[%clk 0:02:47.7]} 6. Ngf3 {[%clk 0:02:45.5]} 6... cxd4 {[%clk 0:02:47]} 7.
exd4 {[%clk 0:02:45.7]} 7... Bf5 {[%clk 0:02:45.1]} 8. Be2 {[%clk 0:02:38.3]}
8... e6 {[%clk 0:02:44.6]} 9. O-O {[%clk 0:02:38.2]} 9... h6 {[%clk 0:02:44]}
10. Re1 {[%clk 0:02:34.1]} 10... Bd6 {[%clk 0:02:43.2]} 11. Bxd6 {[%clk
0:02:33.7]} 11... Qxd6 {[%clk 0:02:42.8]} 12. Ne5 {[%clk 0:02:29.2]} 12... O-O
{[%clk 0:02:42.9]} 13. Ndf3 {[%clk 0:02:15.6]} 13... Nd7 {[%clk 0:02:36.9]} 14.
Nxd7 {[%clk 0:02:07.6]} 14... Qxd7 {[%clk 0:02:36.8]} 15. a4 {[%clk 0:02:07.9]}
15... Qc7 {[%clk 0:02:32.1]} 16. h3 {[%clk 0:02:02.6]} 16... Rfe8 {[%clk
0:02:30.9]} 17. Bf1 {[%clk 0:01:49.7]} 17... Be4 {[%clk 0:02:27.9]} 18. Nd2
{[%clk 0:01:46.5]} 18... Bg6 {[%clk 0:02:27.4]} 19. Nb3 {[%clk 0:01:40.9]} 19...
Na5 {[%clk 0:02:20.8]} 20. Nc5 {[%clk 0:01:27.4]} 20... Nc6 {[%clk 0:02:02.2]}
21. b4 {[%clk 0:01:20.3]} 21... a5 {[%clk 0:01:57.5]} 22. Bb5 {[%clk 0:01:13.6]}
22... Rec8 {[%clk 0:01:48.1]} 23. Bxc6 {[%clk 0:01:10.8]} 23... Qxc6 {[%clk
0:01:46.2]} 24. b5 {[%clk 0:01:11]} 24... Qc7 {[%clk 0:01:44.6]} 25. Re3 {[%clk
0:01:04.8]} 25... b6 {[%clk 0:01:43.3]} 26. Nb3 {[%clk 0:01:03.2]} 26... Qd6
{[%clk 0:01:33.4]} 27. Nd2 {[%clk 0:00:58.7]} 27... Rc7 {[%clk 0:01:31.9]} 28.
Qb3 {[%clk 0:00:57.2]} 28... Rac8 {[%clk 0:01:29.8]} 29. Rae1 {[%clk 0:00:51.5]}
29... Qf4 {[%clk 0:01:09]} 30. Nf3 {[%clk 0:00:48.1]} 30... Be4 {[%clk
0:00:51.3]} 31. Ne5 {[%clk 0:00:45.2]} 31... h5 {[%clk 0:00:46.1]} 32. Nc6
{[%clk 0:00:39.2]} 32... h4 {[%clk 0:00:42.3]} 33. Qa3 {[%clk 0:00:34.5]} 33...
Rxc6 {[%clk 0:00:27.1]} 34. bxc6 {[%clk 0:00:32.3]} 34... Rxc6 {[%clk
0:00:27.1]} 35. Qb3 {[%clk 0:00:32.2]} 35... Qg5 {[%clk 0:00:24.3]} 36. f3
{[%clk 0:00:30.8]} 36... Bf5 {[%clk 0:00:23.8]} 37. R1e2 {[%clk 0:00:15.7]}
37... Bxh3 {[%clk 0:00:20]} 38. f4 {[%clk 0:00:15.8]} 38... Qg4 {[%clk
0:00:15.2]} 39. Qb2 {[%clk 0:00:05.6]} 39... Bxg2 {[%clk 0:00:03.5]} 40. Rxg2
{[%clk 0:00:05.6]} 40... Qxf4 {[%clk 0:00:04]} 41. Qf2 {[%clk 0:00:04.6]} 1-0

[Event "Early-Titled-Tuesday-Blitz-February-27-2024"]
[Site "Chess.com"]
[Date "2024.02.27"]
[Round "9"]
[White "ikhasu"]
[Black "GMJustin"]
[Result "0-1"]
[WhiteElo "2429"]
[BlackElo "2352"]
[TimeControl "180+1"]
[EndTime "9:45:35 PST"]
[Termination "GMJustin won on time"]

1. e4 {[%clk 0:03:00.9]} 1... c5 {[%clk 0:02:53]} 2. Nc3 {[%clk 0:03:00.5]} 2...
Nc6 {[%clk 0:02:49.5]} 3. f4 {[%clk 0:03:00.5]} 3... e6 {[%clk 0:02:19.9]} 4.
Nf3 {[%clk 0:03:00.3]} 4... Qc7 {[%clk 0:02:13.8]} 5. Bc4 {[%clk 0:02:40.2]}
5... a6 {[%clk 0:02:11.1]} 6. a4 {[%clk 0:02:38]} 6... g6 {[%clk 0:01:54.7]} 7.
d3 {[%clk 0:02:37.2]} 7... Bg7 {[%clk 0:01:52.8]} 8. O-O {[%clk 0:02:36.9]} 8...
Nge7 {[%clk 0:01:50.4]} 9. Qe1 {[%clk 0:02:32.1]} 9... Nd4 {[%clk 0:01:23.3]}
10. Nxd4 {[%clk 0:02:29.5]} 10... cxd4 {[%clk 0:01:23.3]} 11. Ne2 {[%clk
0:02:27.8]} 11... d5 {[%clk 0:01:21.9]} 12. exd5 {[%clk 0:02:23.2]} 12... exd5
{[%clk 0:01:20.6]} 13. Bb3 {[%clk 0:02:21.9]} 13... O-O {[%clk 0:01:18.6]} 14.
Qf2 {[%clk 0:02:20.8]} 14... Nf5 {[%clk 0:01:11.2]} 15. Bd2 {[%clk 0:02:10.5]}
15... Re8 {[%clk 0:01:05.8]} 16. Rfe1 {[%clk 0:02:07.4]} 16... Ne3 {[%clk
0:01:02.5]} 17. c3 {[%clk 0:01:31.1]} 17... Qb6 {[%clk 0:00:46.1]} 18. Nxd4
{[%clk 0:01:27.6]} 18... Bxd4 {[%clk 0:00:38.2]} 19. cxd4 {[%clk 0:01:27.3]}
19... Qxb3 {[%clk 0:00:35.5]} 20. Rxe3 {[%clk 0:01:24]} 20... Rxe3 {[%clk
0:00:32.8]} 21. Qxe3 {[%clk 0:01:22.6]} 21... Bf5 {[%clk 0:00:17.3]} 22. Bc3
{[%clk 0:01:22.4]} 22... Qc2 {[%clk 0:00:17.2]} 23. Rc1 {[%clk 0:00:46.1]} 23...
Qxd3 {[%clk 0:00:16.6]} 24. Qxd3 {[%clk 0:00:43.9]} 24... Bxd3 {[%clk
0:00:17.5]} 25. Bb4 {[%clk 0:00:44.3]} 25... Re8 {[%clk 0:00:16.1]} 26. Rc7
{[%clk 0:00:38.3]} 26... b5 {[%clk 0:00:13.5]} 27. axb5 {[%clk 0:00:36.1]} 27...
axb5 {[%clk 0:00:12.9]} 28. Be7 {[%clk 0:00:35.8]} 28... Kg7 {[%clk 0:00:09]}
29. Kf2 {[%clk 0:00:34.8]} 29... h5 {[%clk 0:00:07.5]} 30. g3 {[%clk 0:00:32.4]}
30... Bc4 {[%clk 0:00:05.9]} 31. Kf3 {[%clk 0:00:22.1]} 31... Ra8 {[%clk
0:00:05.1]} 32. Bd6 {[%clk 0:00:20.3]} 32... Ra2 {[%clk 0:00:04.2]} 33. Be5+
{[%clk 0:00:20.4]} 33... Kf8 {[%clk 0:00:04.1]} 34. Bf6 {[%clk 0:00:20.1]} 34...
Ke8 {[%clk 0:00:03.7]} 35. Rc8+ {[%clk 0:00:16.2]} 35... Kd7 {[%clk 0:00:03.6]}
36. Rd8+ {[%clk 0:00:15.6]} 36... Ke6 {[%clk 0:00:02.4]} 37. Be5 {[%clk
0:00:15.6]} 37... Rxb2 {[%clk 0:00:02.7]} 38. Rd6+ {[%clk 0:00:15.6]} 38... Ke7
{[%clk 0:00:02.9]} 39. f5 {[%clk 0:00:08]} 39... Rb3+ {[%clk 0:00:02.9]} 40. Kf4
{[%clk 0:00:08]} 40... gxf5 {[%clk 0:00:03.1]} 41. Rc6 {[%clk 0:00:05.1]} 41...
b4 {[%clk 0:00:03.1]} 42. Kxf5 {[%clk 0:00:03.4]} 42... Rb2 {[%clk 0:00:03.2]}
43. Rc7+ {[%clk 0:00:03.4]} 43... Kd8 {[%clk 0:00:03.2]} 44. Rb7 {[%clk
0:00:01]} 44... b3 {[%clk 0:00:03.4]} 0-1